bitfinex-derivatives/quotes_ETHF0:USTF0_20250909
["timestamp","ask_amount","ask_price","bid_price","bid_amount"]
[1757390912295,4.14920817,4310.8,4310.7,0.7202]
[1757390913488,3.91620817,4310.8,4310.7,0.7202]
[1757390916294,4.14920817,4310.8,4310.7,0.7202]
[1757390917496,4.36150817,4310.8,4310.7,0.7202]
[1757390922103,4.61610817,4310.8,4310.7,0.7202]
[1757390922599,4.61610817,4310.8,4310.7,0.2923]
[1757390924496,4.61610817,4310.8,4310.7,0.5048]
[1757390927501,4.36150817,4310.8,4310.7,0.7202]
[1757390928601,4.12850817,4310.8,4310.7,0.7202]
[1757390928904,4.61590817,4310.8,4310.7,0.7202]
[1757390930906,4.61590817,4310.8,4310.7,0.5048]
[1757390936811,0.4145,4310.5,4310.4,0.3026]
[1757390937000,1.76346112,4310.5,4310.4,0.3026]
[1757390937202,2.57696929,4310.5,4310.3,0.00347987]
[1757390937412,0.92670817,4310.4,4310.3,0.00347987]
[1757390937710,1.18110817,4310.4,4310.3,0.00347987]
[1757390939709,1.18110817,4310.4,4310.3,0.30607987]
[1757390940514,1.41310817,4310.4,4310.3,0.00347987]
[1757390940808,0.4145,4309.7,4309.5,0.99430332]
[1757390941013,0.0026,4309.1,4309.0,3.5104]
[1757390941202,0.0026,4309.1,4309.0,3.2078]
[1757390941203,1.33016112,4309.1,4309.0,3.2078]
[1757390941406,1.84236929,4309.1,4309.0,3.2078]
[1757390941608,1.84236929,4309.1,4308.5,0.3026]
[1757390941609,8.18767817,4309.1,4308.5,0.3026]
[1757390941803,8.18767817,4309.1,4308.2,3.2078]
[1757390941804,0.0026,4308.4,4308.3,0.3026]
[1757390943215,0.0026,4308.4,4308.2,3.2078]
[1757390943416,0.0026,4308.0,4307.7,3.5104]
[1757390943611,1.09716112,4307.8,4307.7,3.5104]
[1757390943812,0.2356,4307.8,4307.7,3.7168]
[1757390944408,1.09456112,4308.1,4308.0,0.6363]
[1757390944409,1.09586112,4308.1,4308.0,0.6363]
[1757390944712,0.2356,4308.1,4308.0,0.6363]
[1757390947920,0.233,4308.1,4308.0,0.8311]
[1757390948114,0.00347987,4308.2,4308.1,0.3026]
[1757390948314,0.00347987,4308.2,4308.1,0.7038]
[1757390958126,0.11937987,4308.2,4308.1,0.7038]
[1757390960724,4.35237987,4308.2,4307.5,0.3296]
[1757390960920,3.2078,4307.9,4307.7,0.3172]
[1757390961126,3.4408,4307.9,4307.7,0.2023]
[1757390961427,3.4408,4307.9,4307.8,0.3172]
[1757390961922,4.36852719,4307.9,4307.8,0.3172]
[1757390962428,4.36852719,4307.9,4307.5,0.1273]
[1757390962429,8.36852719,4307.9,4307.6,0.3172]
[1757390962640,0.92772719,4307.7,4307.6,0.3172]
[1757390967444,5.4406735,4307.7,4307.1,0.3172]
[1757390967642,0.92772719,4307.2,4307.1,0.3172]
[1757390967836,1.16072719,4307.2,4307.1,0.3172]
[1757390968834,6.60176427,4307.2,4306.6,0.3172]
[1757390969143,4.13552719,4306.7,4306.6,0.3172]
[1757390969342,4.882272,4306.7,4306.6,0.3172]
[1757390970035,3.4408,4306.7,4306.6,0.5195]
[1757390970236,4.36852719,4306.7,4306.6,0.7307]
[1757390971949,4.36852719,4306.7,4306.6,0.5195]
[1757390976744,4.36852719,4306.7,4306.6,0.3172]
[1757390982253,4.48452719,4306.7,4306.6,0.3172]
[1757390983460,4.25152719,4306.7,4306.6,0.3172]
[1757390983649,4.48632719,4306.7,4306.6,0.3172]
[1757390983855,4.25242719,4306.7,4306.6,0.7307]
[1757390984055,4.48452719,4306.7,4306.6,0.7307]
[1757390984651,3.3238,4306.7,4306.6,0.7307]
[1757390984861,3.5568,4306.7,4306.6,0.7307]
[1757390985855,3.3238,4306.7,4306.6,0.7307]
[1757390986056,3.2078,4307.4,4306.6,5.89062719]
[1757390986256,3.4408,4307.4,4307.3,0.7307]
[1757390988265,3.2078,4307.4,4307.3,0.7307]
[1757390988464,3.4123,4307.4,4307.3,0.7307]
[1757390988671,3.6453,4307.4,4307.3,0.7307]
[1757390990868,5.09882719,4307.4,4307.3,0.7307]
[1757390992972,5.09882719,4307.4,4307.3,0.5195]
[1757390996572,5.09882719,4307.4,4307.1,0.305]
[1757390996773,1.65802719,4307.2,4307.1,0.305]
[1757390996972,1.89102719,4307.2,4307.1,0.5079]
[1757390999065,1.89102719,4307.2,4307.1,0.7145]
[1757391000476,3.2078,4307.4,4307.2,0.305]
[1757391000669,0.4375,4307.3,4307.2,0.7145]
[1757391000976,0.9633,4307.3,4307.2,0.7145]
[1757391002972,0.9633,4307.3,4307.2,0.305]
[1757391003970,1.89102719,4307.3,4306.6,0.305]
[1757391004278,1.65802719,4306.7,4306.6,0.5079]
[1757391004476,1.89102719,4306.7,4306.6,0.5079]
[1757391005675,1.65802719,4306.7,4306.6,0.7145]
[1757391005870,1.16072719,4306.7,4306.6,0.7145]
[1757391006078,0.233,4306.7,4306.6,0.7145]
[1757391006568,0.4375,4306.7,4306.6,0.7145]
[1757391006764,3.4123,4307.3,4307.2,0.4095]
[1757391006968,4.36210954,4307.3,4307.2,0.7145]
[1757391007169,4.68530954,4307.3,4307.2,0.7145]
[1757391007375,5.61303673,4307.3,4307.2,0.7145]
[1757391009981,5.09882719,4307.3,4307.2,0.7145]
[1757391011284,5.61309738,4307.3,4307.2,0.7145]
[1757391013276,5.61309738,4307.3,4307.2,0.305]
[1757391013481,5.61309738,4307.3,4306.6,0.305]
[1757391013784,0.2045,4306.7,4306.6,0.7145]
[1757391015086,0.3232,4306.9,4306.6,0.7145]
[1757391015278,0.4375,4307.0,4306.9,0.4095]
[1757391015584,1.16072719,4307.1,4307.0,0.8351]
[1757391015785,1.36522719,4307.1,4307.0,1.11808022]
[1757391016686,1.86932719,4307.1,4307.0,1.11808022]
[1757391018277,0.7086,4307.1,4307.0,1.11808022]
[1757391020085,1.22350695,4307.1,4307.0,1.11808022]
[1757391023186,1.22350695,4307.1,4307.0,0.28298022]
[1757391023399,2.31997155,4307.1,4307.0,0.28298022]
[1757391026484,2.31997155,4307.1,4307.0,0.28309675]
[1757391026786,2.31997155,4307.1,4306.6,0.3019]
[1757391026787,0.4116,4306.7,4306.6,0.3019]
[1757391027086,0.9457,4306.7,4306.6,0.79368938]
[1757391030097,0.9457,4306.7,4306.6,0.28308938]
[1757391030390,4.66848808,4306.7,4306.6,0.28308938]
[1757391032091,4.66848808,4306.7,4306.6,0.58498938]
[1757391032288,4.66848808,4306.7,4306.6,0.28308938]
[1757391033694,4.66848808,4306.7,4306.6,0.28309429]
[1757391040094,4.66848808,4306.7,4306.6,0.28329231]
[1757391040997,4.66848808,4306.7,4306.6,0.58518351]
[1757391041597,4.43548808,4306.7,4306.6,0.79388351]
[1757391041994,4.66848808,4306.7,4306.6,0.99128351]
[1757391042490,4.66884071,4306.7,4306.6,0.99128351]
[1757391043693,4.66884071,4306.7,4306.6,0.79388351]
[1757391044602,4.36774071,4306.7,4306.6,0.99128351]
[1757391045291,4.66884071,4306.7,4306.6,0.99128351]
[1757391046193,4.66884071,4306.7,4306.6,0.79388351]
[1757391046488,4.66884071,4306.7,4306.6,0.28328351]
[1757391047100,4.66884071,4306.7,4306.6,0.60698351]
[1757391047903,4.66884071,4306.7,4306.6,0.28328351]
[1757391055306,4.67914071,4306.7,4306.6,0.28463021]
[1757391059001,0.51534071,4306.7,4306.6,2.12009481]
[1757391059210,3.2078,4307.2,4306.6,6.12009481]
[1757391059408,0.2123,4307.6,4307.5,0.8592]
[1757391059707,0.96107967,4307.6,4307.5,1.14383021]
[1757391060209,1.47907967,4307.6,4307.5,1.14376363]
[1757391060408,1.59507967,4307.6,4307.5,1.14376363]
[1757391061002,1.28367967,4307.6,4307.5,1.14376363]
[1757391061511,0.116,4307.6,4307.5,1.14376363]
[1757391061814,0.116,4307.6,4307.5,5.14376363]
[1757391062212,0.116,4307.6,4307.5,5.37591363]
[1757391062809,0.00347987,4308.2,4308.1,0.739]
[1757391063019,0.00347987,4308.2,4308.1,1.02299537]
[1757391063211,3.2078,4308.8,4308.1,5.02299537]
[1757391063412,3.2078,4308.8,4308.7,0.739]
[1757391063615,3.2078,4308.8,4308.7,1.02299537]
[1757391063824,3.4408,4308.8,4308.7,1.02299537]
[1757391064015,3.2078,4308.8,4308.7,1.02299537]
[1757391064208,3.4408,4308.8,4308.7,0.739]
[1757391064415,3.7315,4308.8,4308.7,0.739]
[1757391064718,4.1711,4308.8,4308.7,0.739]
[1757391069821,3.2078,4308.8,4308.7,0.739]
[1757391070522,3.4201,4308.8,4308.7,0.739]
[1757391070909,3.7315,4308.8,4308.7,0.739]
[1757391071218,3.9381,4308.8,4308.7,0.739]
[1757391071419,4.1711,4308.8,4308.1,0.3237]
[1757391071618,0.4189,4307.6,4307.5,0.5242]
[1757391071817,0.7303,4307.2,4307.1,0.5242]
[1757391072421,0.7303,4307.2,4307.1,0.739]
[1757391078842,0.2123,4307.2,4307.1,0.739]
[1757391079128,0.5157,4307.2,4307.1,0.739]
[1757391079828,0.5157,4307.2,4307.1,1.02297689]
[1757391080125,0.7266,4307.2,4307.1,1.02297689]
[1757391083323,0.233,4307.5,4307.4,0.4127]
[1757391083324,0.5364,4307.5,4307.4,0.4127]
[1757391083528,0.4293,4307.5,4307.4,0.72]
[1757391083826,34.70937356,4309.2,4308.1,0.522]
[1757391083827,0.7106,4308.2,4308.1,0.522]
[1757391084028,0.9436,4308.2,4308.1,0.72]
[1757391084326,0.5364,4308.5,4308.2,0.3073]
[1757391084527,3.7075,4308.8,4308.7,0.4127]
[1757391084729,3.4408,4308.8,4308.7,0.72]
[1757391085034,0.3034,4309.1,4308.7,0.72]
[1757391085035,0.4293,4309.1,4309.0,0.8467]
[1757391085225,1.35740391,4309.1,4309.0,0.8467]
[1757391085427,1.66080391,4309.1,4309.0,0.8467]
[1757391085734,1.87170391,4309.1,4309.0,0.8467]
[1757391087534,1.87170391,4309.1,4309.0,0.72]
[1757391089130,1.87170391,4309.1,4309.0,0.522]
[1757391090627,0.1235,4309.0,4308.0,0.1267]
[1757391090832,1.63870391,4308.2,4308.1,1.00421881]
[1757391091031,1.63870391,4308.2,4308.1,0.72]
[1757391091335,1.63870391,4308.2,4308.1,0.2147]
[1757391091738,0.3565,4308.5,4308.1,0.4127]
[1757391091739,0.233,4308.5,4308.1,0.4127]
[1757391091937,0.3034,4308.7,4308.6,0.72]
[1757391091938,0.7327,4308.7,4308.6,0.72]
[1757391092138,0.9436,4308.7,4308.6,0.72]
[1757391092533,0.9436,4308.7,4308.6,0.2147]
[1757391093740,0.9436,4308.7,4308.6,0.522]
[1757391095443,0.9436,4308.7,4308.1,0.3073]
[1757391095741,1.63870391,4308.2,4308.1,0.522]
[1757391096241,1.63870391,4308.2,4308.1,0.72]
[1757391096741,0.7106,4308.2,4308.1,0.72]
[1757391098342,0.4072,4308.2,4308.1,0.72]
[1757391098845,0.7106,4308.2,4308.1,0.72]
[1757391099741,3.4041,4308.6,4308.5,0.8467]
[1757391100042,3.2078,4308.6,4308.5,0.8467]
[1757391101136,3.9184,4308.6,4308.5,0.8467]
[1757391101538,3.9184,4308.6,4308.5,0.72]
[1757391103146,3.9184,4308.6,4308.5,1.00441462]
[1757391104343,3.615,4308.6,4308.5,2.05921853]
[1757391104549,3.5112,4309.1,4308.5,1.75191853]
[1757391104845,3.7075,4309.1,4309.0,0.8467]
[1757391105040,3.9405,4309.1,4309.0,0.8467]
[1757391105245,3.6371,4309.1,4309.0,0.8467]
[1757391105642,3.4041,4309.1,4309.0,0.8467]
[1757391105849,3.2078,4309.1,4309.0,0.8467]
[1757391106050,3.4041,4309.1,4309.0,1.13003069]
[1757391106242,3.7075,4309.1,4309.0,1.13003069]
[1757391106648,3.4041,4309.1,4309.0,1.13003069]
[1757391107745,3.7154,4309.1,4309.0,1.13003069]
[1757391108645,3.9167,4309.1,4309.0,1.13003069]
[1757391108854,4.84480391,4309.1,4309.0,1.00333069]
[1757391109041,5.07780391,4309.1,4308.6,0.233]
[1757391109343,0.7142,4308.7,4308.6,0.233]
[1757391109541,0.7142,4308.7,4308.6,0.51647477]
[1757391109743,0.7142,4308.7,4308.6,0.72927477]
[1757391109945,0.7142,4308.7,4308.6,1.03287477]
[1757391111052,0.7142,4308.7,4308.6,0.51647477]
[1757391112046,0.7142,4308.7,4308.6,1.03287477]
[1757391112547,0.4029,4308.7,4308.6,1.24187477]
[1757391112747,0.7142,4308.7,4308.6,1.24187477]
[1757391118861,0.7142,4308.7,4308.6,1.2423301]
[1757391119957,0.7142,4308.7,4308.6,0.2839301]
[1757391121460,0.7142,4308.7,4308.6,0.8003301]
[1757391121766,0.7142,4308.7,4308.6,1.0093301]
[1757391123754,0.3113,4309.0,4308.6,0.7057301]
[1757391123965,0.2016,4309.1,4309.0,0.4251]
[1757391124266,0.70845202,4309.1,4309.0,1.1308301]
[1757391124468,0.233,4309.5,4309.1,0.3036]
[1757391124665,0.4346,4309.5,4309.4,0.7254]
[1757391124866,0.94140848,4309.5,4309.4,0.7254]
[1757391125165,1.25270848,4309.5,4309.4,0.7254]
[1757391125374,1.45400848,4309.5,4309.4,0.7254]
[1757391127466,1.22100848,4309.5,4309.4,0.7254]
[1757391127668,1.58260848,4309.5,4309.1,0.3036]
[1757391127868,1.64230391,4309.3,4309.2,0.28390843]
[1757391128069,2.14911239,4309.3,4309.2,0.28390843]
[1757391129280,2.14911239,4309.3,4309.2,0.80030843]
[1757391129977,0.70840848,4309.3,4309.2,1.00930843]
[1757391130975,1.01970848,4309.3,4309.2,1.00930843]
[1757391131274,1.22100848,4309.3,4309.2,0.28390843]
[1757391133775,1.22100848,4309.3,4309.2,1.00930843]
[1757391133980,0.94140848,4309.3,4309.2,1.00930843]
[1757391134777,0.70840848,4309.3,4309.2,1.00930843]
[1757391135681,1.22100848,4309.3,4309.2,1.00930843]
[1757391135887,1.22100848,4309.3,4309.2,0.7254]
[1757391137587,2.14911239,4309.3,4309.2,0.5164]
[1757391138083,1.22100848,4309.3,4309.2,0.5164]
[1757391138286,1.22100848,4309.3,4309.2,0.7301]
[1757391138782,0.50680848,4309.3,4309.2,0.7301]
[1757391138983,1.25160848,4309.3,4309.2,0.7301]
[1757391142585,1.25160848,4309.3,4308.9,0.2984]
[1757391142786,0.7448,4309.0,4308.9,0.7167]
[1757391142979,1.25160848,4309.0,4308.9,0.7167]
[1757391146982,0.92890848,4309.0,4308.9,0.7167]
[1757391147690,1.25160848,4309.0,4308.9,0.7167]
[1757391150292,0.7448,4309.0,4308.9,0.7167]
[1757391151890,0.2059,4309.0,4308.9,0.7167]
[1757391152093,0.5286,4309.0,4308.9,0.7167]
[1757391152593,0.7448,4309.0,4308.9,1.95794916]
[1757391155189,0.8626,4309.0,4308.9,1.74424916]
[1757391155697,0.5399,4308.5,4308.4,1.24124916]
[1757391155900,0.5399,4308.5,4308.4,0.503]
[1757391155901,0.8626,4308.5,4308.4,0.503]
[1757391156100,0.7448,4308.5,4308.4,0.7167]
[1757391156402,0.7448,4308.5,4308.4,1.96571566]
[1757391158098,0.2059,4308.5,4308.4,0.7167]
[1757391158285,0.3227,4308.8,4308.7,0.4183]
[1757391158490,1.03583509,4308.8,4308.7,0.7167]
[1757391158893,1.25203509,4308.8,4308.7,0.7167]
[1757391159092,1.25203509,4308.8,4308.7,0.503]
[1757391159698,0.7448,4308.5,4308.4,1.24854107]
[1757391159894,0.5399,4308.5,4308.3,4.45634107]
[1757391160092,0.7448,4308.4,4308.3,4.95934107]
[1757391160789,0.7448,4308.4,4308.3,1.24854107]
[1757391160995,0.7448,4308.3,4308.2,1.24854107]
[1757391161398,0.7448,4308.3,4308.2,1.96524107]
[1757391164695,0.3227,4308.9,4308.3,0.2984]
[1757391164901,0.5286,4308.9,4308.8,0.7167]
[1757391165101,1.03550421,4308.9,4308.8,0.7167]
[1757391166000,1.25170421,4308.9,4308.8,0.7167]
[1757391169200,1.25170421,4308.9,4308.8,0.503]
[1757391169403,0.7187,4308.4,4308.3,4.97054107]
[1757391169703,0.7187,4308.4,4308.3,0.7305]
[1757391173303,0.7187,4308.4,4308.3,0.2058]
[1757391173501,0.7187,4308.4,4308.3,0.5142]
[1757391174705,0.7187,4308.4,4308.3,0.7305]
[1757391177602,0.7187,4308.3,4308.1,1.24854107]
[1757391177807,0.7187,4308.3,4307.5,1.24854107]
[1757391177808,0.1276,4308.0,4307.5,1.24854107]
[1757391177994,0.3185,4307.5,4307.4,1.24854107]
[1757391178198,0.7187,4307.5,4307.4,1.67064107]
[1757391178398,0.7187,4307.5,4307.4,1.97904107]
[1757391179402,0.7187,4307.5,4307.4,0.7305]
[1757391179608,0.4002,4307.5,4307.4,0.7305]
[1757391180109,0.7187,4307.5,4307.4,0.7305]
[1757391180305,0.4002,4307.5,4307.4,0.7305]
[1757391180506,0.7187,4308.2,4308.1,0.7305]
[1757391180803,3.2078,4308.5,4308.2,0.3084]
[1757391181005,3.2078,4308.5,4308.4,0.3084]
[1757391181218,3.91578089,4308.5,4308.4,0.7305]
[1757391181405,4.43318089,4308.5,4308.4,0.7305]
[1757391181600,4.11468089,4308.5,4308.4,0.7305]
[1757391181806,0.6332,4308.9,4308.8,0.4221]
[1757391182006,1.13983561,4308.9,4308.8,0.7305]
[1757391182304,1.45833561,4308.9,4308.8,0.7305]
[1757391183511,0.4002,4308.3,4308.2,0.7305]
[1757391183812,0.7187,4308.3,4308.2,0.7305]
[1757391184912,0.4002,4308.3,4308.2,0.7305]
[1757391185300,0.2013,4308.3,4308.2,0.7305]
[1757391186206,0.3185,4308.6,4308.2,0.4221]
[1757391186510,0.233,4308.8,4308.5,0.5462]
[1757391186709,0.70815422,4308.7,4308.6,0.7305]
[1757391187306,1.22555422,4308.7,4308.6,0.7305]
[1757391188915,3.2078,4309.1,4308.6,1.5174875]
[1757391189213,3.9265,4309.1,4309.0,0.8546]
[1757391189407,4.43334457,4309.1,4309.0,0.7305]
[1757391190111,4.43334457,4309.1,4308.6,0.3084]
[1757391190311,0.7187,4308.7,4308.6,0.5142]
[1757391190611,0.7187,4308.1,4308.0,0.5142]
[1757391190806,0.7187,4308.1,4308.0,0.7305]
[1757391191410,0.7187,4308.1,4308.0,0.8546]
[1757391192511,0.4002,4308.1,4308.0,0.8546]
[1757391196818,0.7109,4308.1,4308.0,0.8546]
[1757391197912,0.7109,4308.1,4308.0,0.7305]
[1757391198114,0.3107,4307.7,4307.6,0.233]
[1757391198317,0.7278,4307.5,4307.4,0.2925]
[1757391198618,0.7278,4307.5,4307.4,0.4874]
[1757391199818,0.7278,4307.5,4307.4,0.6858]
[1757391201219,0.8568,4307.5,4307.2,1.24854107]
[1757391201418,0.8568,4307.5,4307.0,0.2925]
[1757391201419,4.0646,4307.5,4307.0,0.2925]
[1757391201723,0.7278,4306.8,4306.2,1.24854107]
[1757391201924,0.7278,4306.3,4306.1,0.2925]
[1757391202223,0.7278,4306.3,4306.2,0.6858]
[1757391206717,0.4171,4306.3,4306.2,0.6858]
[1757391207024,0.2053,4306.3,4306.2,0.6858]
[1757391209430,0.7278,4306.3,4306.2,0.6858]
[1757391210230,3.4131,4306.5,4306.4,0.3933]
[1757391210527,3.7238,4306.5,4306.4,0.6858]
[1757391210931,3.9356,4306.5,4306.4,0.6858]
[1757391215233,0.4171,4306.5,4306.4,0.6858]
[1757391216127,0.7278,4306.5,4306.4,0.6858]
[1757391216832,0.8568,4306.5,4306.1,0.2925]
[1757391217024,0.7278,4306.2,4306.1,0.2925]
[1757391217331,0.7278,4306.2,4306.1,0.4874]
[1757391218635,0.7278,4306.2,4306.1,0.6858]
[1757391225631,0.2053,4306.2,4306.1,0.6858]
[1757391226130,0.516,4306.2,4306.1,0.6858]
[1757391226331,0.7278,4306.2,4306.1,0.6858]
[1757391226731,1.65633906,4306.2,4306.1,0.4874]
[1757391228237,1.65633906,4306.2,4306.1,1.94584107]
[1757391230233,1.65633906,4306.2,4306.1,0.6973]
[1757391230439,1.65633906,4306.2,4306.1,1.94584107]
[1757391231236,1.65633906,4306.2,4306.1,0.6973]
[1757391234344,0.516,4306.2,4306.1,0.6973]
[1757391234531,0.7237,4306.2,4306.1,0.6973]
[1757391235145,0.7237,4306.2,4306.1,0.4874]
[1757391236140,0.7237,4306.2,4306.1,0.6973]
[1757391238045,0.7237,4306.2,4306.1,0.4874]
[1757391238444,0.3237,4306.1,4305.9,0.2922]
[1757391238747,0.7389,4306.0,4305.9,0.7079]
[1757391240246,0.7389,4306.0,4305.9,2.36816726]
[1757391250051,0.4152,4306.0,4305.9,2.36816726]
[1757391250253,3.623,4306.5,4306.4,0.7079]
[1757391250444,4.36477406,4306.5,4306.4,1.96112459]
[1757391250748,4.1797,4306.5,4306.4,1.96112459]
[1757391250946,3.4153,4306.5,4306.4,2.88966365]
[1757391251253,3.2078,4306.5,4306.4,2.88966365]
[1757391251750,3.2078,4306.5,4306.4,1.96112459]
[1757391252953,3.2078,4306.5,4306.4,0.7079]
[1757391254451,3.4153,4306.5,4306.4,0.7079]
[1757391254649,3.739,4306.5,4306.4,0.7079]
[1757391255654,3.9467,4306.5,4306.4,0.7079]
[1757391255950,3.9467,4306.5,4306.4,1.75122719]
[1757391257851,3.9467,4306.5,4306.4,1.96112719]
[1757391264853,4.45548569,4306.5,4306.4,1.96112719]
[1757391267054,3.9467,4306.5,4306.4,1.96112719]
[1757391269853,4.0643,4306.5,4306.4,1.75122719]
[1757391270053,4.0643,4306.5,4306.4,1.45902719]
[1757391270953,4.80530448,4306.5,4306.4,1.25322719]
[1757391271158,0.4036,4306.0,4305.9,2.18596726]
[1757391271458,0.7252,4306.0,4305.9,2.38426726]
[1757391277963,0.7252,4306.0,4305.9,0.724]
[1757391285265,0.8428,4306.0,4305.9,0.5257]
[1757391285565,0.7252,4306.0,4305.9,0.5257]
[1757391289171,0.7252,4306.0,4305.9,0.7324]
[1757391289965,0.233,4306.3,4306.0,0.1242]
[1757391290164,0.233,4306.3,4306.2,0.7171]
[1757391291573,0.9586,4306.3,4306.2,0.3046]
[1757391293172,0.9586,4306.3,4306.2,0.5104]
[1757391305075,0.9586,4306.3,4305.9,1.66026726]
[1757391305076,0.3144,4306.2,4305.9,1.66026726]
[1757391305276,0.7256,4306.0,4305.9,0.7171]
[1757391308874,3.5222,4306.4,4306.0,0.1242]
[1757391309073,0.233,4306.3,4306.2,0.4125]
[1757391309278,0.233,4306.3,4306.2,0.7171]
[1757391310481,3.5222,4307.0,4306.3,0.3046]
[1757391310685,3.4095,4307.0,4306.9,0.7171]
[1757391310881,4.15881987,4307.0,4306.9,0.7171]
[1757391311082,0.233,4307.2,4306.9,0.7171]
[1757391311289,0.233,4307.2,4307.1,0.7171]
[1757391311584,0.4347,4307.2,4307.1,0.7171]
[1757391312779,0.3144,4307.4,4307.2,0.3046]
[1757391312985,3.7239,4307.5,4307.4,0.4125]
[1757391313177,4.47274076,4307.5,4307.4,0.7171]
[1757391313382,4.68224076,4307.5,4307.4,0.7171]
[1757391314489,4.80584076,4307.5,4307.4,0.5104]
[1757391314787,4.80584076,4307.5,4307.0,0.1242]
[1757391314788,4.80584076,4307.5,4307.1,0.3046]
[1757391314983,5.38677876,4307.5,4307.1,0.3046]
[1757391315189,5.07237876,4307.5,4306.6,0.3046]
[1757391315387,0.7256,4306.7,4306.6,0.7171]
[1757391318584,0.2947,4306.4,4306.2,0.3045]
[1757391318785,0.7219,4306.3,4306.2,0.5007]
[1757391319786,0.2947,4306.2,4305.9,0.3045]
[1757391319986,0.7219,4306.0,4305.9,0.7085]
[1757391321989,0.7219,4306.0,4305.9,0.5007]
[1757391322592,0.8488,4306.0,4305.9,0.5007]
[1757391322779,0.5541,4306.0,4305.8,3.2078]
[1757391322985,0.7219,4305.9,4305.8,0.7085]
[1757391324295,3.4231,4306.3,4306.2,0.7085]
[1757391324488,0.51,4306.3,4306.2,0.7085]
[1757391324888,0.7219,4306.3,4306.2,0.7085]
[1757391325589,0.2947,4306.6,4306.2,1.63689927]
[1757391325793,0.2153,4306.4,4306.3,0.7085]
[1757391325981,0.7219,4306.4,4306.3,0.7085]
[1757391332207,0.2947,4306.7,4306.3,0.7085]
[1757391332410,0.51,4306.7,4306.6,0.7085]
[1757391333108,0.7219,4306.7,4306.6,0.7085]
[1757391340515,0.2153,4306.7,4306.6,0.7085]
[1757391340712,0.51,4307.7,4307.6,0.7085]
[1757391341009,0.00347987,4307.8,4307.6,0.7085]
[1757391341213,0.00347987,4307.8,4307.7,0.3045]
[1757391341413,0.21877987,4307.8,4307.7,0.7085]
[1757391341607,0.00347987,4307.8,4307.7,1.63689927]
[1757391341807,0.21877987,4307.8,4307.7,0.7085]
[1757391342014,0.51347987,4307.8,4307.7,0.7085]
[1757391342613,1.35907914,4307.8,4307.4,0.3045]
[1757391342805,0.4272,4307.2,4307.1,0.3045]
[1757391343007,1.65029927,4307.2,4307.1,0.5007]
[1757391343406,1.65029927,4307.2,4306.8,3.2078]
[1757391343611,0.1269,4307.5,4307.0,0.5251]
[1757391343916,0.5066,4307.4,4307.3,0.404]
[1757391344115,0.5066,4307.4,4307.3,0.7085]
[1757391344116,0.7219,4307.4,4307.3,0.7085]
[1757391346217,0.7219,4307.4,4307.3,0.99308672]
[1757391347621,0.7219,4307.4,4307.3,0.28458672]
[1757391352428,0.7219,4307.4,4307.3,0.78338672]
[1757391353625,0.7219,4307.4,4307.3,0.99718672]
[1757391354028,0.2153,4307.4,4307.3,0.99718672]
[1757391354230,0.234,4307.4,4307.3,0.99718672]
[1757391356629,0.7292,4307.4,4307.3,0.99718672]
[1757391356830,0.9386,4307.4,4307.3,0.99718672]
[1757391357931,0.6394,4307.4,4307.3,0.99718672]
[1757391358923,3.2078,4307.7,4307.5,0.1262]
[1757391359134,0.43,4307.6,4307.5,0.8388]
[1757391359435,4.15266449,4307.6,4307.5,1.12344401]
[1757391359827,0.43,4307.6,4307.5,1.12344401]
[1757391360228,0.234,4307.6,4307.5,2.05184328]
[1757391360428,0.19947987,4307.8,4307.7,0.7126]
[1757391360635,0.49867987,4307.8,4307.7,0.99722317]
[1757391361037,0.00347987,4307.8,4307.7,0.99722317]
[1757391364029,0.70807987,4307.8,4307.7,0.99722317]
[1757391365036,0.40887987,4307.8,4307.7,0.99722317]
[1757391365237,0.19947987,4307.8,4307.7,0.99722317]
[1757391366740,0.00347987,4307.8,4307.7,0.99722317]
[1757391368229,0.234,4308.2,4307.7,5.22936317]
[1757391368432,3.507,4308.7,4308.6,0.419]
[1757391368433,3.4418,4308.7,4308.6,0.419]
[1757391368631,4.15194555,4308.7,4308.6,0.7126]
[1757391369235,4.15194555,4308.7,4308.6,0.99725354]
[1757391369536,3.91794555,4308.7,4308.6,0.7126]
[1757391369835,4.45114555,4308.7,4308.6,0.7126]
[1757391370043,1.00934555,4308.7,4308.6,0.7126]
[1757391370342,0.71005025,4308.7,4308.6,0.7126]
[1757391370536,0.51405025,4308.7,4308.6,0.7126]
[1757391372241,0.234,4309.1,4308.6,0.7126]
[1757391372437,0.51367117,4309.0,4308.9,0.419]
[1757391372640,1.21827117,4309.0,4308.9,0.7126]
[1757391375750,5.35447044,4309.0,4308.9,0.7126]
[1757391378542,2.14667044,4309.0,4308.9,0.7126]
[1757391378749,0.7046,4309.0,4308.9,0.7126]
[1757391379947,1.21771513,4309.0,4308.9,0.7126]
[1757391380450,0.7046,4309.0,4308.9,0.7126]
[1757391382046,1.75829927,4309.0,4308.5,3.334]
[1757391382351,0.7381,4308.6,4308.5,3.75]
[1757391382650,0.7381,4308.6,4308.5,4.0343493]
[1757391382851,0.7381,4308.6,4308.5,4.3475493]
[1757391383949,0.4172,4308.6,4308.5,4.3475493]
[1757391384656,0.2024,4308.6,4308.5,4.3475493]
[1757391385553,1.16239927,4309.1,4308.5,4.0343493]
[1757391385751,1.90049927,4309.1,4309.0,0.5182]
[1757391386357,1.48554965,4309.1,4309.0,0.5182]
[1757391388366,1.48554965,4309.1,4309.0,0.7292]
[1757391388566,1.25154965,4309.1,4309.0,0.7292]
[1757391388760,1.48454965,4309.1,4309.0,0.8538]
[1757391390568,1.25154965,4309.1,4309.0,0.8538]
[1757391391160,0.93064965,4309.1,4309.0,0.8538]
[1757391391365,0.71584965,4309.1,4309.0,0.8538]
[1757391391668,0.233,4309.2,4309.1,0.7292]
[1757391391870,0.94929595,4309.2,4309.1,0.7292]
[1757391392167,1.48499595,4309.2,4309.1,0.7292]